bitfinex/quotes_ETHUSD_20251008
["timestamp","ask_amount","ask_price","bid_price","bid_amount"]
[1759912765372,0.0012,4492.1,4491.4,2.22646706]
[1759912765535,0.0012,4492.1,4491.5,2.55]
[1759912765728,0.0012,4492.1,4491.6,0.1112]
[1759912765937,2.22624377,4491.9,4491.7,17.05]
[1759912766175,2.65607638,4492.1,4491.7,17.05]
[1759912766329,2.65489937,4492.0,4491.8,2.55]
[1759912766537,0.4287,4491.9,4491.8,2.55]
[1759912766936,0.0012,4492.1,4491.8,2.55]
[1759912767133,0.4287,4492.0,4491.8,2.55]
[1759912768866,0.4287,4491.9,4491.8,2.55]
[1759912769489,2.22733176,4492.1,4491.8,17.05]
[1759912769656,2.22618347,4492.0,4491.8,17.05]
[1759912769861,2.22617987,4492.0,4491.8,17.05]
[1759912770785,0.0012,4492.1,4491.8,17.05]
[1759912770958,0.0012,4492.1,4491.8,14.5]
[1759912771149,2.22734167,4492.1,4491.9,2.549]
[1759912771352,2.68967987,4492.0,4491.9,2.549]
[1759912771846,2.68967987,4492.0,4491.8,14.5]
[1759912772051,0.4635,4491.9,4491.6,2.549]
[1759912772302,0.4635,4491.8,4491.6,2.551]
[1759912772457,0.0012,4492.1,4491.6,2.551]
[1759912772654,2.68982856,4491.7,4491.6,2.551]
[1759912772956,2.68982856,4491.7,4490.8,0.001]
[1759912773281,2.68982856,4491.7,4490.9,2.55]
[1759912773282,2.68983085,4491.7,4490.9,2.55]
[1759912773447,0.4627,4491.7,4490.9,2.55]
[1759912773651,2.68907503,4491.7,4490.9,2.55]
[1759912773864,2.2263836,4491.6,4491.0,14.5]
[1759912774147,2.22737875,4492.1,4491.0,16.72666944]
[1759912774452,2.22628429,4491.8,4491.0,14.5]
[1759912774853,0.0012,4492.1,4491.1,2.67007849]
[1759912775054,0.0012,4492.1,4491.2,2.55]
[1759912775482,0.0012,4492.1,4491.3,14.5]
[1759912775483,2.22628979,4491.8,4491.3,14.5]
[1759912775651,2.22623501,4491.9,4491.3,14.5]
[1759912775851,0.0012,4492.1,4491.3,14.5]
[1759912776162,2.22623621,4491.9,4491.3,14.5]
[1759912776359,0.0012,4492.1,4491.3,14.5]
[1759912776777,0.4635,4492.0,4491.3,14.5]
[1759912776983,2.22628575,4491.8,4491.3,14.5]
[1759912777309,0.4635,4491.7,4491.4,2.549]
[1759912777889,0.0012,4492.1,4491.5,14.5]
[1759912778489,2.22619445,4492.0,4491.6,2.55]
[1759912778693,2.68969445,4492.0,4491.6,2.55]
[1759912778892,2.22623563,4491.9,4491.6,2.55]
[1759912779091,0.0012,4492.1,4491.7,14.5]
[1759912779464,2.22617992,4492.0,4491.7,14.5]
[1759912779664,2.22617992,4492.0,4491.8,2.549]
[1759912779870,0.4647,4492.1,4491.8,2.549]
[1759912779871,0.0012,4492.1,4491.8,2.549]
[1759912780164,2.68968676,4492.0,4491.8,2.549]
[1759912780364,2.68968676,4492.0,4491.9,14.5]
[1759912781792,0.4635,4492.0,4490.8,0.001]
[1759912781997,2.22652762,4491.3,4491.0,0.1112]
[1759912782186,0.4716,4491.2,4491.1,14.5]
[1759912782363,2.22648942,4491.4,4491.1,14.5]
[1759912782571,2.22648845,4491.4,4491.2,2.549]
[1759912782893,0.4716,4491.3,4491.2,2.549]
[1759912783393,2.22638239,4491.6,4491.2,17.049]
[1759912783699,2.22651921,4491.4,4491.2,17.049]
[1759912783896,0.4716,4491.3,4491.2,14.5]
[1759912784082,0.4716,4491.3,4491.2,17.048]
[1759912784504,2.33753861,4491.7,4491.2,17.048]
[1759912784505,0.4716,4491.6,4491.2,17.048]
[1759912784700,2.22637812,4491.6,4491.3,2.548]
[1759912784914,0.1112,4491.7,4491.0,0.1112]
[1759912784915,2.69804213,4491.5,4491.0,0.1112]
[1759912785116,0.4716,4491.5,4491.0,0.1112]
[1759912785284,0.4716,4491.5,4491.1,2.548]
[1759912785489,2.69808426,4491.4,4491.1,17.048]
[1759912785681,0.4716,4491.3,4491.1,17.048]
[1759912785908,0.4716,4491.2,4491.1,17.048]
[1759912786092,2.69817641,4491.2,4491.1,17.048]
[1759912786305,2.69817641,4491.2,4490.8,0.001]
[1759912786306,2.22662599,4491.1,4490.8,0.001]
[1759912786616,2.22671755,4491.0,4490.9,2.549]
[1759912786814,2.22672515,4490.9,4490.8,2.55]
[1759912786982,0.4716,4490.9,4490.8,0.001]
[1759912787310,0.1112,4491.2,4490.8,2.55]
[1759912787513,0.4716,4491.1,4490.8,2.55]
[1759912787711,2.22666774,4491.1,4490.8,2.55]
[1759912787920,0.1112,4491.2,4490.8,2.55]
[1759912788082,2.22668013,4491.0,4490.8,2.55]
[1759912788287,0.4716,4491.1,4490.8,2.55]
[1759912788489,2.22663096,4491.1,4490.8,2.55]
[1759912788689,2.69827847,4491.0,4490.8,2.55]
[1759912788902,0.4716,4490.9,4490.8,2.55]
[1759912789098,2.69832515,4490.9,4490.8,0.001]
[1759912789318,2.69832515,4490.9,4490.8,2.55]
[1759912789704,0.1112,4491.2,4490.8,2.55]
[1759912789906,0.4716,4491.1,4490.8,2.55]
[1759912790219,0.4716,4491.0,4490.9,14.5]
[1759912791190,0.4716,4491.3,4490.9,14.5]
[1759912791691,0.4716,4491.2,4490.9,14.5]
[1759912791890,0.4716,4491.1,4491.0,2.549]
[1759912793816,0.4716,4491.1,4491.0,17.049]
[1759912794003,0.4716,4491.1,4491.0,14.5]
[1759912794215,0.4716,4491.1,4491.0,17.048]
[1759912794893,2.69822599,4491.1,4491.0,17.048]
[1759912795089,0.4716,4491.1,4491.0,17.048]
[1759912796222,0.4716,4491.1,4490.7,0.1032]
[1759912796389,0.4716,4491.1,4490.6,0.001]
[1759912796390,2.22602432,4490.7,4490.6,0.001]
[1759912796814,2.69762432,4490.7,4490.6,0.001]
[1759912797025,0.4716,4491.0,4490.6,0.001]
[1759912797191,1.92,4491.7,4490.6,0.001]
[1759912797192,2.22672925,4490.9,4490.6,0.001]
[1759912797531,2.69832624,4490.9,4490.6,0.001]
[1759912797727,2.69813048,4491.3,4490.6,0.001]
[1759912798023,2.22667349,4491.1,4490.6,0.001]
[1759912798228,0.4716,4491.3,4490.6,0.001]
[1759912798531,2.69813166,4491.3,4490.6,0.001]
[1759912798825,0.002,4492.0,4490.6,0.001]
[1759912799023,0.4716,4491.9,4491.0,2.22667557]
[1759912799228,0.4716,4491.8,4491.1,2.569]
[1759912799445,0.002,4492.0,4491.2,0.48346576]
[1759912799627,0.002,4492.0,4491.4,2.22642927]
[1759912799943,0.002,4492.0,4491.5,2.59126427]
[1759912800450,0.002,4492.0,4491.6,14.98346378]
[1759912800649,0.002,4492.0,4491.7,0.02226328]
[1759912800860,0.002,4492.0,4491.9,2.22622943]
[1759912801366,0.002,4492.0,4491.9,17.19559172]
[1759912801509,0.002,4492.0,4491.9,17.17332943]
[1759912801709,0.002,4492.0,4491.9,14.9471]
[1759912802346,0.002,4492.0,4491.9,19.74532943]
[1759912802550,0.002,4492.0,4491.9,17.17332943]
[1759912802714,0.002,4492.0,4491.9,17.5191]
[1759912802914,0.002,4492.0,4491.9,21.37667762]
[1759912803150,0.002,4492.0,4491.9,23.60290705]
[1759912804592,0.002,4492.0,4491.9,14.5]
[1759912804876,0.002,4492.0,4491.9,19.74532943]
[1759912805678,0.002,4492.0,4491.9,19.74432943]
[1759912806465,0.002,4492.0,4491.9,19.85552943]
[1759912809200,0.002,4492.0,4491.9,17.6293]
[1759912809401,0.002,4492.0,4491.9,19.85452943]
[1759912809701,0.002,4492.0,4491.9,21.66332943]
[1759912810075,0.002,4492.0,4491.9,22.29692943]
[1759912810380,0.002,4492.0,4491.9,22.3861338]
[1759912811808,0.002,4492.0,4491.9,22.29392943]
[1759912815981,1e-08,4492.1,4492.0,4.77977987]
[1759912816181,1e-08,4492.1,4492.0,9.08445749]
[1759912816693,1e-08,4492.1,4492.0,23.58445749]
[1759912817020,1e-08,4492.5,4492.4,2.22598165]
[1759912817189,1e-08,4492.5,4492.4,11.22341908]
[1759912817390,1e-08,4492.5,4492.4,11.64825927]
[1759912817602,1e-08,4492.9,4492.6,2.22585687]
[1759912817792,1e-08,4492.9,4492.8,8.63696109]
[1759912817995,1e-08,4492.9,4492.8,23.13696109]
[1759912818179,1e-08,4492.9,4492.8,23.58406109]
[1759912819389,0.00920001,4493.9,4493.8,2.22528817]
[1759912819713,0.00920001,4493.9,4493.8,4.78928817]
[1759912819898,0.00920001,4493.9,4493.8,5.34758817]
[1759912820105,0.00920001,4493.9,4493.8,19.84758817]
[1759912822330,0.00920001,4493.9,4493.8,16.83648817]
[1759912822535,0.00920001,4493.9,4492.9,0.43686868]
[1759912822824,0.4541,4493.8,4493.0,0.415]
[1759912823021,0.4541,4493.8,4493.1,5.65397149]
[1759912823322,0.00920001,4493.9,4493.2,5.67622734]
[1759912823558,0.00920001,4493.9,4493.2,2.561]
[1759912823718,0.00920001,4493.9,4493.3,2.22552597]
[1759912824040,0.00920001,4493.9,4493.4,4.78747708]
[1759912824238,0.00920001,4493.9,4493.5,2.562]
[1759912824456,0.00920001,4493.9,4493.5,3.0091]
[1759912824654,0.00920001,4493.9,4493.5,5.23450427]
[1759912824828,0.00920001,4493.9,4493.6,14.9471]
[1759912825029,0.00920001,4493.9,4493.7,5.65397149]
[1759912825241,0.00920001,4493.9,4493.7,8.32640403]
[1759912825442,0.00920001,4493.9,4493.7,5.23343254]
[1759912825868,0.00920001,4493.9,4493.8,14.5]
[1759912826077,0.00920001,4493.9,4493.8,17.061]
[1759912829664,0.00920001,4493.9,4493.8,17.5081]
[1759912829974,0.00920001,4493.9,4493.8,17.061]
[1759912830181,0.01120001,4493.9,4493.8,17.061]
[1759912830583,0.01120001,4493.9,4493.8,2.559]
[1759912833473,0.48250001,4493.9,4493.8,2.558]
[1759912833692,0.01120001,4493.9,4493.8,2.558]
[1759912833872,0.48250001,4493.9,4493.8,2.558]
[1759912834399,0.01120001,4493.9,4493.8,2.558]
[1759912834564,0.48250001,4493.9,4493.6,0.001]
[1759912834766,2.70773866,4493.9,4493.8,2.557]
[1759912834970,0.48250001,4493.9,4493.8,2.557]
[1759912835870,0.01120001,4493.9,4493.8,2.557]
[1759912837410,0.01120001,4493.9,4493.8,3.141]
[1759912837606,0.01120001,4493.9,4493.8,5.36628817]
[1759912838088,0.01120001,4493.9,4493.8,19.86628817]
[1759912838782,0.01120001,4493.9,4493.8,17.30928817]
[1759912839092,0.01120001,4493.9,4493.8,19.86528817]
[1759912839994,0.01120001,4493.9,4493.8,21.78528817]
[1759912840297,0.01120001,4493.9,4493.8,19.22928817]
[1759912840593,0.01120001,4493.9,4493.8,21.79428817]
[1759912842542,0.01040001,4493.9,4493.8,19.569]
[1759912842694,0.01040001,4493.9,4493.8,19.0982]
[1759912843024,0.01040001,4493.9,4493.8,19.40348817]
[1759912843400,0.01040001,4493.9,4493.8,16.83648817]
[1759912843724,0.01040001,4493.9,4493.8,17.6108]
[1759912844041,0.01040001,4493.9,4493.8,19.83608817]
[1759912845230,0.01040001,4493.9,4493.8,17.1782]
[1759912845728,0.01040001,4493.9,4493.8,19.83608817]
[1759912845938,0.01040001,4493.9,4493.8,22.92853557]
[1759912846097,0.01040001,4493.9,4493.8,24.84853557]
[1759912846606,0.01040001,4493.9,4493.8,20.0562474]
[1759912846948,0.01040001,4493.9,4493.6,0.001]
[1759912846949,0.46770001,4493.9,4493.6,0.001]
[1759912847115,0.01040001,4493.9,4493.7,2.566]
[1759912847319,0.01040001,4493.9,4493.8,7.25998845]
[1759912847505,0.01040001,4493.9,4493.8,8.30393557]
[1759912847705,0.01,4494.9,4494.7,2.22484259]
[1759912847910,0.01,4494.9,4494.7,19.31809101]
[1759912848098,0.01,4494.9,4494.7,19.29584259]
[1759912848299,0.01,4494.9,4494.7,19.72844259]
[1759912848531,0.01,4494.9,4494.7,17.5036]
[1759912849716,0.01,4494.9,4494.7,14.5]
[1759912850032,0.01,4494.9,4494.7,14.9326]
[1759912850330,0.01,4494.9,4494.7,17.5026]
[1759912851040,0.01,4494.9,4494.7,19.72744259]
[1759912852636,0.01,4494.9,4494.7,21.64744259]
[1759912855922,0.01,4494.9,4494.7,19.07744259]
[1759912856244,0.01,4494.9,4494.7,21.64544259]
[1759912856829,0.01,4495.9,4494.8,1.92]
[1759912857016,2.23424932,4495.9,4495.0,1.92]
[1759912857212,0.01,4495.9,4495.1,0.02224644]
[1759912857416,0.4203,4496.1,4495.3,1.92]
[1759912857753,2.64445593,4496.1,4495.4,2.567]
[1759912858046,2.22398064,4496.5,4495.4,2.567]
[1759912858342,2.22386279,4496.7,4495.4,2.567]
[1759912858516,2.22410035,4496.2,4495.4,2.567]
[1759912858721,2.22429115,4495.9,4495.4,2.567]
[1759912859725,2.22419928,4496.0,4495.4,2.567]
[1759912859921,2.22426202,4495.9,4495.4,2.567]
[1759912860350,0.4573,4495.9,4495.4,1.92]
[1759912860548,2.22434771,4495.7,4495.3,0.0716]
[1759912860844,2.22423024,4496.0,4495.5,2.565]
[1759912861046,0.009,4496.3,4495.6,2.565]
[1759912861248,0.009,4496.3,4495.7,2.565]
[1759912861456,2.22424416,4496.0,4495.7,2.565]
[1759912861619,2.22417865,4496.1,4495.7,2.565]
[1759912862120,2.2330965,4496.3,4495.7,2.565]
[1759912862333,2.22411691,4496.2,4495.8,2.564]
[1759912862619,0.009,4496.3,4495.9,2.564]
[1759912862820,0.009,4496.3,4496.0,2.564]
[1759912863050,0.009,4496.3,4496.1,2.564]
[1759912863354,2.23306683,4496.3,4496.2,2.564]
[1759912863650,0.009,4496.3,4496.2,2.564]
[1759912863849,0.4522,4496.3,4495.7,14.5]
[1759912864049,2.224195,4496.1,4495.8,2.564]
[1759912864248,0.009,4496.3,4495.9,0.02224248]
[1759912864436,0.009,4496.3,4495.8,2.564]
[1759912864841,0.009,4496.3,4495.8,3.0042]
[1759912865039,0.009,4496.3,4495.9,2.6644465]
[1759912865243,0.009,4496.3,4495.9,0.46244248]
[1759912865423,0.0082,4496.3,4496.0,0.4402]
[1759912865623,0.0082,4496.3,4496.2,2.22410035]
[1759912866054,0.0082,4496.3,4496.2,4.60654135]
[1759912866374,0.0082,4496.3,4496.2,4.58430035]
[1759912866668,0.0102,4496.3,4496.2,4.58430035]
[1759912866825,0.0102,4496.3,4496.2,4.69550035]
[1759912867166,0.0102,4496.3,4496.2,19.19550035]
[1759912867362,0.0102,4496.3,4496.2,19.08430035]
[1759912867924,0.0102,4496.3,4496.2,22.17340718]
[1759912869255,0.0102,4496.3,4496.2,24.73440718]
[1759912869656,0.0102,4496.3,4496.2,22.17340718]
[1759912869952,2.22356178,4497.3,4497.0,0.0514]
[1759912870152,2.22351657,4497.4,4497.1,2.561]
[1759912870368,0.00320444,4497.6,4497.1,2.561]
[1759912870526,0.00320444,4497.6,4497.1,3.0012]
[1759912870947,2.22346042,4497.5,4497.1,3.0012]
[1759912871152,0.00320444,4497.6,4497.1,3.0012]
[1759912871669,0.00320444,4497.6,4497.2,0.02223605]
[1759912871851,0.00320444,4497.6,4497.3,3.0002]
[1759912872188,0.00320444,4497.6,4497.3,2.56]
[1759912872351,2.2234735,4497.5,4497.0,0.4916]
[1759912872543,0.00320444,4497.6,4497.1,2.56]
[1759912872943,0.00320444,4497.6,4497.1,3.0002]
[1759912873179,0.00320444,4497.6,4497.0,0.0514]
[1759912873388,2.22345897,4497.5,4497.1,2.559]
[1759912873881,0.00320444,4497.6,4497.0,0.0514]
[1759912874072,2.22345747,4497.5,4497.1,17.059]
[1759912874453,0.00320444,4497.6,4497.1,17.059]
[1759912874782,2.22661668,4497.6,4497.1,17.059]
[1759912875153,2.22360579,4497.2,4497.1,14.5]
[1759912875348,0.4432,4497.5,4497.1,17.058]
[1759912875562,2.22350691,4497.4,4497.1,17.058]
[1759912875879,2.22350691,4497.4,4497.1,2.558]
[1759912876177,2.22354965,4497.4,4497.2,2.558]
[1759912876547,2.22355635,4497.3,4497.2,2.558]
[1759912876756,2.22663494,4497.6,4497.0,14.5514]
[1759912876757,2.22361906,4497.2,4497.0,0.0514]
[1759912876992,0.00320444,4497.6,4497.0,0.0514]
[1759912876993,2.22365524,4497.1,4497.0,0.0514]
[1759912877157,2.66685524,4497.1,4497.0,0.0514]
[1759912878374,0.42167071,4497.7,4496.9,2.557]
[1759912878579,0.42167071,4497.7,4497.1,0.1104]
[1759912878883,2.22352123,4497.4,4497.2,2.557]
[1759912879082,0.4432,4497.6,4497.2,2.557]
[1759912879083,2.22346572,4497.5,4497.2,2.557]
[1759912879283,0.42167071,4497.7,4497.2,2.557]
[1759912879481,2.64504309,4497.7,4497.2,2.557]
[1759912879808,2.22343067,4497.6,4497.2,2.557]
[1759912880012,2.6450408,4497.7,4497.2,2.557]
[1759912880309,2.22341197,4497.6,4497.2,2.557]
[1759912880680,2.22347267,4497.5,4497.2,2.557]
[1759912880880,2.22340803,4497.6,4497.2,2.557]
[1759912881080,2.22346413,4497.5,4497.2,2.557]
[1759912881399,2.22351667,4497.4,4497.2,2.557]
[1759912881585,2.22345925,4497.5,4497.1,14.6104]
[1759912881784,2.22355021,4497.4,4497.2,2.556]
[1759912882310,2.22344379,4497.6,4497.2,2.556]
[1759912882487,2.22346256,4497.5,4497.2,2.556]
[1759912882807,0.42167071,4497.7,4497.2,2.57823605]
[1759912883112,0.42167071,4497.7,4497.3,0.4402]
[1759912883913,0.42167071,4497.7,4497.2,2.57823605]
[1759912884080,0.4432,4497.6,4497.3,14.5]
[1759912884280,2.22350691,4497.4,4497.3,14.5]
[1759912884512,2.22350691,4497.4,4497.3,2.555]
[1759912884812,2.66670691,4497.4,4497.3,2.555]
[1759912884999,0.42167071,4497.7,4497.1,14.6114]
[1759912885212,0.42167071,4497.7,4497.2,2.555]
[1759912885213,2.2236037,4497.3,4497.2,2.555]
[1759912885399,2.22360579,4497.2,4497.1,1e-08]
[1759912885712,3.80247605,4497.2,4497.1,1e-08]
[1759912885913,4.72479294,4497.2,4497.1,1e-08]
[1759912886541,35.32379646,4497.2,4497.1,1e-08]
[1759912886716,34.72479294,4497.2,4497.1,1e-08]
[1759912887038,13.57146082,4497.2,4497.1,1e-08]
[1759912887187,2.87472671,4497.2,4497.1,1e-08]
[1759912887388,3.35388606,4497.2,4497.1,1e-08]
[1759912888484,3.35308606,4497.2,4497.1,1e-08]
[1759912889341,6.54168606,4497.2,4497.1,1e-08]
[1759912889524,37.14070328,4497.2,4497.1,1e-08]
[1759912890551,36.54168606,4497.2,4497.1,1e-08]
[1759912891149,36.33456514,4497.2,4497.1,1e-08]
[1759912891914,2.22459512,4495.2,4495.1,0.01]
[1759912892124,2.22430034,4495.8,4495.1,0.01]
[1759912892338,2.22434771,4495.7,4495.1,0.01]
[1759912892660,0.447,4495.8,4495.1,0.01]
[1759912892810,0.447,4495.6,4495.1,0.01]
[1759912893211,0.447,4496.0,4495.1,0.01]
[1759912893440,2.67120299,4496.0,4495.1,2.23463757]
[1759912893746,1.04220465,4496.6,4495.2,0.02224595]
[1759912893921,0.447,4496.5,4495.3,14.5]
[1759912894109,0.447,4496.5,4495.5,1.92]
[1759912894314,0.59520465,4496.6,4496.0,2.22418823]
[1759912894716,0.59520465,4496.6,4495.9,2.556]
[1759912895043,0.59520465,4496.6,4495.9,17.056]
[1759912895413,2.81911413,4496.6,4496.0,2.556]
[1759912895909,0.447,4496.5,4496.0,2.556]
[1759912896131,0.447,4496.5,4495.1,2.23462105]
[1759912896132,2.22417764,4496.1,4495.8,2.555]
[1759912896441,0.447,4496.0,4495.8,2.555]
[1759912896810,0.447,4495.9,4495.8,2.555]
[1759912897990,0.1112,4496.1,4495.8,2.555]
[1759912898148,0.1104,4496.5,4495.8,2.6662]
[1759912898353,2.33436895,4496.5,4495.8,2.6662]
[1759912899476,0.59520465,4496.6,4496.1,2.22411036]
[1759912899790,0.59520465,4496.6,4496.2,2.554]
[1759912900087,2.67095281,4496.5,4495.5,2.22443865]
[1759912900294,0.59520465,4496.6,4495.3,0.4597]
[1759912900295,0.447,4496.4,4495.7,1.92]
[1759912900465,2.65686769,4496.3,4495.7,1.92]
[1759912900668,0.4328,4496.3,4495.7,1.92]
[1759912901165,0.4328,4496.3,4495.8,2.22427255]
[1759912901366,0.59520465,4496.6,4495.9,2.554]
[1759912901585,2.22395196,4496.5,4495.9,2.554]
[1759912901764,3.25191473,4496.6,4495.9,2.554]
[1759912901965,3.25191055,4496.6,4495.9,2.554]
[1759912902162,2.65675834,4496.5,4495.9,2.554]
[1759912902363,0.4328,4496.5,4495.9,2.554]
[1759912902661,0.4328,4496.5,4495.9,4.77823601]
[1759912903412,0.59520465,4496.6,4496.0,2.22419051]
[1759912904459,2.81911295,4496.6,4495.9,2.554]
[1759912904695,2.65680067,4496.5,4495.9,2.554]
[1759912904986,0.4328,4496.5,4495.9,2.554]
[1759912905283,2.22400403,4496.4,4495.9,2.554]
[1759912905459,0.4328,4496.3,4495.9,2.554]
[1759912905669,0.4328,4496.2,4496.0,2.552]
[1759912905881,2.22405757,4496.3,4496.0,2.552]
[1759912906190,0.4328,4496.1,4496.0,2.552]
[1759912906974,0.4328,4496.1,4495.9,2.551]
[1759912907169,0.59520465,4496.6,4495.9,2.551]
[1759912907373,2.22422976,4496.0,4495.6,0.001]
[1759912907575,2.22404105,4496.4,4495.9,2.551]
[1759912907776,0.59520465,4496.6,4495.9,2.551]
[1759912907777,2.22419928,4496.0,4495.9,2.551]
[1759912907977,2.65699928,4496.0,4495.9,2.551]
[1759912908177,0.4328,4496.0,4495.9,2.551]
[1759912908561,0.4328,4496.0,4495.6,0.001]
[1759912908791,2.81911383,4496.6,4495.6,0.001]
[1759912908792,0.4328,4495.9,4495.8,2.551]
[1759912909099,2.22405792,4496.3,4495.8,2.551]
[1759912909408,0.1112,4496.4,4495.9,0.02224248]
[1759912910175,0.1112,4496.4,4495.9,0.49364248]
[1759912910364,0.00176245,4497.6,4496.0,2.69559301]
[1759912910580,0.1104,4496.8,4496.2,2.22410035]
[1759912910768,0.4328,4497.5,4496.3,2.5772405]
[1759912910977,0.1104,4497.3,4496.6,0.1104]
[1759912911174,0.00176245,4497.6,4497.1,0.1104]
[1759912911379,0.00176245,4497.6,4497.2,2.555]
[1759912911590,0.00096245,4497.6,4497.2,2.555]
[1759912913067,2.2235187,4497.4,4497.1,0.1104]
[1759912913261,0.4328,4497.3,4497.2,2.554]
[1759912913906,2.22360579,4497.2,4496.6,0.1104]
[1759912914113,0.4328,4497.3,4496.7,2.553]
[1759912914277,0.00096245,4497.6,4496.8,0.02223803]
[1759912914467,0.00096245,4497.6,4497.1,0.1104]
[1759912914667,0.00096245,4497.6,4497.2,2.553]
[1759912914866,0.00096245,4497.6,4497.2,2.57523605]
[1759912915610,0.00096245,4497.6,4497.4,0.1104]
[1759912916701,0.00096245,4497.6,4497.5,0.49363457]
[1759912917205,0.00096245,4497.6,4497.5,2.71709204]
[1759912917832,0.00096245,4497.6,4497.5,0.49363457]
[1759912918005,0.00096245,4497.6,4497.5,0.4714]
[1759912918633,0.00096245,4497.6,4497.4,0.1104]
[1759912919429,0.43376245,4497.6,4497.5,1.042]
[1759912919633,2.65717048,4497.6,4497.5,1.042]
[1759912919854,0.00096245,4497.6,4497.4,0.1104]
[1759912920029,0.00096245,4497.6,4497.5,2.551]
[1759912920235,0.00096245,4497.6,4497.4,0.1104]
[1759912920762,0.00096245,4497.6,4497.5,2.55]
[1759912922072,2.22437048,4497.6,4497.5,2.55]
[1759912922256,0.00096245,4497.6,4497.5,2.55]
[1759912922936,0.00096245,4497.6,4497.5,2.549]
[1759912924674,2.22437048,4497.6,4497.5,2.549]
[1759912924849,2.22345747,4497.5,4497.4,0.1104]
[1759912925049,2.65727078,4497.6,4497.4,0.1104]
[1759912925269,2.65727078,4497.6,4497.4,2.6594]
[1759912925467,0.00096245,4497.6,4497.4,0.1104]
[1759912925647,2.22345747,4497.5,4497.4,0.1104]
[1759912925860,2.65636964,4497.5,4497.4,2.548]
[1759912926378,2.22352734,4497.4,4497.1,0.001]
[1759912926564,2.22356686,4497.3,4497.2,2.549]
[1759912926964,2.22441209,4497.6,4497.2,2.549]
[1759912927315,0.00096245,4497.6,4497.3,0.47463556]
[1759912927441,0.00096245,4497.6,4497.4,0.47463506]
[1759912927773,0.00096245,4497.6,4497.5,0.1104]
[1759912928980,2.22437048,4497.6,4497.5,0.1104]
[1759912929174,2.65727048,4497.6,4497.5,2.6584]
[1759912929558,2.22437048,4497.6,4497.5,0.1104]
[1759912929881,2.22437048,4497.6,4497.5,2.6594]
[1759912930065,2.22437048,4497.6,4497.5,0.1104]
[1759912930271,0.43386245,4497.6,4497.5,1.26]
[1759912930482,2.65727048,4497.6,4497.5,1.26]
[1759912932496,2.22437048,4497.6,4497.5,1.26]
[1759912932693,2.65727048,4497.6,4497.5,1.26]
[1759912933263,0.00096245,4497.6,4497.5,1.26]
[1759912933883,2.22437048,4497.6,4497.5,1.26]
[1759912934283,0.00096245,4497.6,4497.5,1.26]
[1759912934482,0.00016245,4497.6,4497.5,1.26]
[1759912934771,2.65647048,4497.6,4497.5,1.26]
[1759912935272,2.22345747,4497.5,4497.4,0.1104]
[1759912935473,0.00016245,4497.6,4497.4,2.6574]
[1759912935673,0.00016245,4497.6,4497.4,0.1104]
[1759912935884,0.00016245,4497.6,4497.5,2.548]
[1759912936290,0.00016245,4497.6,4497.5,3.0004]
[1759912936491,0.00016245,4497.6,4497.5,2.548]
[1759912936695,0.00016245,4497.6,4497.5,3.0004]
[1759912936898,0.00016245,4497.6,4497.5,2.548]
[1759912937298,0.00016245,4497.6,4497.5,4.468]
[1759912937607,0.43306245,4497.6,4497.1,0.001]
[1759912937806,0.43306245,4497.6,4497.2,2.9994]
[1759912937807,0.00016245,4497.6,4497.2,2.9994]
[1759912937977,0.4329,4497.5,4497.3,2.547]
[1759912938378,2.223458,4497.5,4497.3,2.547]
[1759912938676,0.00016245,4497.6,4497.4,2.548]
[1759912939022,0.00016245,4497.6,4497.5,0.4524]
[1759912939307,0.00016245,4497.6,4497.4,2.548]
[1759912939880,2.22357268,4497.6,4497.4,2.548]
[1759912940385,2.22345747,4497.5,4497.4,2.548]
[1759912940577,2.22358273,4497.6,4497.4,2.548]
[1759912940774,2.22345747,4497.5,4497.4,2.548]
[1759912940978,2.22357962,4497.6,4497.1,0.001]
[1759912941181,2.22357962,4497.6,4497.2,2.547]
[1759912942328,2.22557962,4497.6,4497.2,2.547]
[1759912942998,0.00216245,4497.6,4497.2,2.547]
[1759912943379,2.2255898,4497.6,4497.3,0.02223556]
[1759912943576,2.2255898,4497.6,4497.2,2.547]
[1759912944718,2.2255898,4497.6,4497.1,0.001]
[1759912944880,2.2255898,4497.6,4497.2,2.547]
[1759912945082,0.00216245,4497.6,4497.3,2.3724]
[1759912945307,0.00216245,4497.6,4497.4,0.4524]
[1759912945508,0.00216245,4497.6,4497.4,2.67589663]
[1759912945806,0.00216245,4497.6,4497.5,2.67585747]
[1759912946531,0.00216245,4497.6,4497.5,4.59585747]
[1759912947387,0.00216245,4497.6,4497.5,4.70625747]
[1759912948791,0.00216245,4497.6,4497.5,7.25325747]
[1759912949621,0.00216245,4497.6,4497.5,7.25425747]
[1759912951818,0.00216245,4497.6,4497.5,7.88785747]
[1759912952199,1e-08,4497.7,4497.6,4.77700803]
[1759912952405,0.21488179,4499.8,4499.7,2.22237038]
[1759912952626,2.22119802,4502.1,4499.8,1.92]
[1759912952795,0.47869606,4502.0,4499.8,2.3764232]
[1759912952996,0.4719,4500.8,4499.8,2.9832]
[1759912953197,2.22193911,4500.6,4499.8,2.9852]
[1759912953412,0.01,4500.9,4499.8,2.9852]
[1759912953658,0.4719,4500.7,4499.8,2.552]
[1759912953864,2.22217872,4500.1,4499.8,2.552]
[1759912954159,0.4719,4500.7,4499.4,0.02222518]
[1759912954328,0.4719,4500.5,4499.5,2.553]
[1759912954662,2.22218718,4500.1,4499.5,2.57522469]
[1759912954861,2.22722657,4500.0,4499.5,2.553]
[1759912955049,2.23228041,4499.9,4499.5,2.553]